[Event "Gibraltar Junior Intl U16 2019"]
[Site "Caleta"]
[Date "2019.08.17"]
[Round "3.8"]
[White "Shepherd, Tom"]
[Black "Martinez Soriano, Javier"]
[Result "1-0"]
[ECO "E19"]
[WhiteElo "1659"]
[BlackElo "1992"]
[Annotator "NA"]
[PlyCount "66"]
[EventDate "2019.08.16"]
[EventType "swiss"]
[EventCountry "GGB"]
[SourceTitle "playchess.com"]
[Source "ChessBase"]
[SourceQuality "1"]
[TimeControl "6600+10"]

1. d4 {[%emt 0:00:00]} e6 {[%emt 0:00:00]} 2. c4 {[%emt 0:00:00]} b6 {[%emt 0:00:07]} 3. Nf3 {[%emt 0:00:02]} Bb7 {[%emt 0:00:22]} 4. g3 {[%emt 0:00:05]} f5 {[%emt 0:00:55]} 5. Bg2 {[%emt 0:01:28]} Nf6 {[%emt 0:00:37]} 6. O-O {[%emt 0:00:04]} Be7 {[%emt 0:00:34]} 7. Nc3 {[%emt 0:00:06]} Ne4 {[%emt 0:00:19]} 8. Qc2 {[%emt 0:02:55]} Nxc3 {[%emt 0:00:15]} 9. Qxc3 {[%emt 0:00:12]} Bf6 {[%emt 0:01:08]} 10. b3 {[%emt 0:02:22]} O-O {[%emt 0:03:17]} 11. Bb2 {[%emt 0:01:33]} c5 {[%emt 0:02:27] E19: Queen's Indian: Old Main Line with 7...Ne4 8 Qc2 Nxc3 8 Qxc3} (11... d6 12. Rad1 Qe8 13. Ne1 Bxg2 14. Nxg2 a5 15. Qf3 Nd7 16. e4 fxe4 17. Qxe4 e5 18. Qd5+ Qf7 19. Ne3 a4 20. b4 {1-0 (72) Stefansson,H (2573)-Salgado Lopez,I (2628) Jerusalem 2015}) 12. Qd2 {[%emt 0:04:46]} Qe7 {[%emt 0:10:31]} 13. Rad1 {[%emt 0:09:35]} Rd8 $146 {[%emt 0:02:32]} ({Predecessor:} 13... d5 14. cxd5 Bxd5 15. dxc5 Bxb2 16. Qxb2 Qxc5 17. Rc1 Qe7 18. Ne5 Bxg2 19. Kxg2 {½-½ (83) Zikan,K (1798)-Hruska,V (1975) Brno 2010}) 14. dxc5 {[%emt 0:04:28]} bxc5 {[%emt 0:03:37]} 15. Bxf6 {[%emt 0:03:50]} Qxf6 {[%emt 0:01:13]} 16. Qd6 {[%emt 0:00:42]} Qf8 {[%emt 0:05:02]} 17. Qc7 {[%emt 0:09:12]} Bc6 {[%emt 0:01:11] [#]} 18. Ne5 $1 {[%emt 0:02:20]} Bxg2 {[%emt 0:00:33]} 19. Kxg2 {[%emt 0:00:06]} d6 {[%emt 0:00:33]} 20. Qb7 $18 {[%emt 0:10:03]} Na6 {[%emt 0:04:57]} 21. Qxa6 {[%emt 0:07:49]} dxe5 {[%emt 0:00:21]} 22. Qxe6+ {[%emt 0:00:04]} Kh8 {[%emt 0:00:12]} 23. Qxe5 {[%emt 0:00:42]} Re8 {[%emt 0:00:06]} 24. Qb2 {[%emt 0:00:37]} Qe7 {[%emt 0:01:48]} 25. e3 {[%emt 0:02:30]} Qe4+ {[%emt 0:00:56]} 26. Kg1 {[%emt 0:00:19]} Qg4 {[%emt 0:01:25]} 27. Rfe1 {[%emt 0:02:15]} Re6 {[%emt 0:03:50]} 28. Qe2 {[%emt 0:02:28]} Qh3 {[%emt 0:00:57]} 29. Qf3 {[%emt 0:00:45]} Rae8 {[%emt 0:00:14]} 30. Qg2 {[%emt 0:00:05]} Qg4 {[%emt 0:00:14]} 31. Rd7 {[%emt 0:03:47]} h6 {[%emt 0:03:17]} 32. Red1 {[%emt 0:01:20]} f4 {[%emt 0:00:54]} 33. gxf4 {[%emt 0:02:33]} Qxg2+ {[%emt 0:02:54]} 1-0

[Event "Gibraltar Junior Intl U16 2019"]
[Site "Caleta"]
[Date "2019.08.17"]
[Round "3.9"]
[White "Akeya-Price, Robert"]
[Black "Walker, Max"]
[Result "1-0"]
[ECO "E67"]
[WhiteElo "1988"]
[BlackElo "1667"]
[Annotator "NA"]
[PlyCount "131"]
[EventDate "2019.08.16"]
[EventType "swiss"]
[EventCountry "GGB"]
[SourceTitle "playchess.com"]
[Source "ChessBase"]
[SourceQuality "1"]
[TimeControl "6600+10"]

1. d4 {[%emt 0:00:00]} Nf6 {[%emt 0:00:00]} 2. c4 {[%emt 0:00:00]} g6 {[%emt 0:00:02]} 3. Nc3 {[%emt 0:00:07]} Bg7 {[%emt 0:00:13]} 4. Nf3 {[%emt 0:00:09]} O-O {[%emt 0:00:17]} 5. g3 {[%emt 0:00:10]} d6 {[%emt 0:01:42]} 6. Bg2 {[%emt 0:00:18]} Nbd7 {[%emt 0:01:46]} 7. O-O {[%emt 0:00:13]} a6 {[%emt 0:04:00]} 8. b3 {[%emt 0:04:50]} c6 {[%emt 0:05:05]} 9. Qc2 {[%emt 0:11:47] E67: King's Indian: Fianchetto: 6...Nbd7} Re8 {[%emt 0:03:07]} 10. Rd1 {[%emt 0:03:02]} Qc7 {[%emt 0:09:40]} 11. e4 {[%emt 0:03:38]} e5 {[%emt 0:03:35]} 12. Ba3 {[%emt 0:11:21]} exd4 $146 {[%emt 0:08:11]} ({Predecessor:} 12... Bf8 13. Bb2 b5 14. cxb5 cxb5 15. Rac1 Bb7 16. dxe5 dxe5 17. Qe2 Qb6 18. Ne1 Rac8 {½-½ (18) Lajthajm,B (2443)-Martic,I (2383) Novi Sad 2015}) 13. Nxd4 {[%emt 0:00:52]} c5 {[%emt 0:07:18]} 14. Nde2 {[%emt 0:01:03]} Ne5 {[%emt 0:08:21]} 15. f4 {[%emt 0:04:48]} Nc6 {[%emt 0:02:23]} 16. Bb2 {[%emt 0:13:00]} Bg4 {[%emt 0:08:04]} 17. h3 {[%emt 0:07:01]} Nd4 {[%emt 0:02:34]} 18. Qd3 {[%emt 0:02:28]} Bxe2 {[%emt 0:03:26]} 19. Nxe2 {[%emt 0:00:06]} Nxe2+ {[%emt 0:00:45]} 20. Qxe2 {[%emt 0:00:03]} Re7 {[%emt 0:16:02]} 21. Qd3 $11 {[%emt 0:08:34]} Rae8 {[%emt 0:06:25]} 22. e5 {[%emt 0:07:24]} dxe5 {[%emt 0:00:55]} 23. Bxe5 {[%emt 0:00:17]} Qc8 {[%emt 0:04:55]} 24. Qc3 {[%emt 0:10:05]} Nh5 {[%emt 0:02:02]} 25. Re1 {[%emt 0:06:40]} Bxe5 {[%emt 0:00:30]} 26. Rxe5 {[%emt 0:01:40]} Rxe5 {[%emt 0:00:06]} 27. fxe5 {[%emt 0:00:03]} Ng7 {[%emt 0:00:58]} 28. Rf1 {[%emt 0:03:00]} Nf5 {[%emt 0:01:40]} 29. Bd5 {[%emt 0:00:52]} Re7 {[%emt 0:00:23]} 30. Qf3 {[%emt 0:02:34]} Qc7 {[%emt 0:02:01]} 31. g4 {[%emt 0:01:32]} Nd4 {[%emt 0:02:19]} 32. Qf6 {[%emt 0:00:32]} Ne6 {[%emt 0:01:32]} 33. h4 {[%emt 0:01:10]} Nd8 {[%emt 0:00:46]} 34. Qd6 {[%emt 0:01:37]} Qd7 {[%emt 0:02:23]} 35. Qxd7 {[%emt 0:00:17]} Rxd7 {[%emt 0:00:01]} 36. Kg2 {[%emt 0:01:26]} Re7 {[%emt 0:00:19]} 37. Re1 {[%emt 0:00:13]} Kf8 {[%emt 0:00:49]} 38. Kf3 {[%emt 0:00:14]} Ke8 {[%emt 0:00:15]} 39. g5 {[%emt 0:00:30]} Kd7 {[%emt 0:00:33]} 40. Ke4 {[%emt 0:00:30]} Ne6 {[%emt 0:00:51]} 41. Bxb7 {[%emt 0:00:22]} Nc7 {[%emt 0:00:11]} 42. Rd1+ {[%emt 0:00:18]} Ke8 {[%emt 0:00:12]} 43. Bc6+ {[%emt 0:00:04]} Kf8 {[%emt 0:00:07]} 44. Rd8+ {[%emt 0:00:17]} Kg7 {[%emt 0:00:02]} 45. Rd7 {[%emt 0:01:19]} Kf8 {[%emt 0:00:15]} 46. Rd8+ {[%emt 0:00:15]} Kg7 {[%emt 0:00:01]} 47. Bd5 {[%emt 0:00:38]} h6 {[%emt 0:00:27]} 48. Rd6 {[%emt 0:00:08]} hxg5 {[%emt 0:00:04]} 49. hxg5 {[%emt 0:00:02]} Kf8 {[%emt 0:00:24]} 50. Rc6 {[%emt 0:00:05]} Ke8 {[%emt 0:00:07]} 51. Rxc5 {[%emt 0:00:03]} Kd7 {[%emt 0:00:07]} 52. Rc6 {[%emt 0:00:18]} Kd8 {[%emt 0:00:16]} 53. Rf6 {[%emt 0:00:05]} Ke8 {[%emt 0:00:03]} 54. b4 {[%emt 0:00:07]} Kf8 {[%emt 0:00:16]} 55. a4 {[%emt 0:00:02]} Ke8 {[%emt 0:00:01]} 56. b5 {[%emt 0:00:05]} a5 {[%emt 0:00:06]} 57. b6 {[%emt 0:00:24]} Na6 {[%emt 0:00:01]} 58. Kd4 {[%emt 0:00:24]} Nb8 {[%emt 0:00:25]} 59. c5 {[%emt 0:00:16]} Kd8 {[%emt 0:00:18]} 60. c6 {[%emt 0:00:07]} Kc8 {[%emt 0:00:06]} 61. Kc5 {[%emt 0:00:15]} Rxe5 {[%emt 0:00:12]} 62. b7+ {[%emt 0:00:06]} Kd8 {[%emt 0:00:06]} 63. Rxf7 {[%emt 0:00:16]} Na6+ {[%emt 0:00:11]} 64. Kd6 {[%emt 0:00:07]} Re8 {[%emt 0:00:09]} 65. c7+ {[%emt 0:00:06]} Nxc7 {[%emt 0:00:02]} 66. b8=Q# {[%emt 0:00:02]} 1-0

[Event "Gibraltar Junior Intl U16 2019"]
[Site "Caleta"]
[Date "2019.08.17"]
[Round "3.10"]
[White "Hirst, Joe"]
[Black "Tombolis, Christopher"]
[Result "0-1"]
[ECO "B38"]
[WhiteElo "1639"]
[BlackElo "1874"]
[Annotator "NA"]
[PlyCount "58"]
[EventDate "2019.08.16"]
[EventType "swiss"]
[EventCountry "GGB"]
[SourceTitle "playchess.com"]
[Source "ChessBase"]
[SourceQuality "1"]
[TimeControl "6600+10"]

1. e4 {[%emt 0:00:00]} c5 {[%emt 0:00:00]} 2. Nf3 {[%emt 0:00:00]} Nc6 {[%emt 0:00:04]} 3. d4 {[%emt 0:00:02]} cxd4 {[%emt 0:00:12]} 4. Nxd4 {[%emt 0:00:08]} g6 {[%emt 0:00:09]} 5. c4 {[%emt 0:00:06]} Bg7 {[%emt 0:00:06]} 6. Be3 {[%emt 0:00:07]} d6 {[%emt 0:00:13]} 7. Nc3 {[%emt 0:00:11]} Nf6 {[%emt 0:00:06]} 8. Be2 {[%emt 0:00:12]} O-O {[%emt 0:00:43]} 9. O-O {[%emt 0:00:29]} Bd7 {[%emt 0:00:36]} 10. f3 {[%emt 0:00:45]} Re8 {[%emt 0:22:33] B38: Sicilian: Maroczy Bind with 5...Bg7 and 7...0-0} (10... Nxd4 11. Bxd4 Bc6 12. Qd2 a5 13. b3 Nd7 14. Be3 Nc5 15. Rac1 e6 16. Nb5 Be5 17. Bg5 Qb6 18. Qe3 Bxb5 19. cxb5 Rfc8 20. Kh1 a4 21. b4 Nd7 22. Qd2 Qd4 23. Qxd4 Bxd4 {0-1 (39) Lenderman,A (2637)-Shimanov,A (2610) chess.com INT 2019}) 11. Qd2 {[%emt 0:04:26]} Qa5 {[%emt 0:01:03]} 12. a3 {[%emt 0:02:39]} Rac8 {[%emt 0:14:47]} 13. b4 {[%emt 0:04:15]} Qh5 {[%emt 0:03:05]} 14. Nxc6 $146 {[%emt 0:15:12]} ({Predecessor:} 14. Rac1 Nxd4 15. Bxd4 Bh6 16. Be3 Bxe3+ 17. Qxe3 Be6 18. Qxa7 Ra8 19. Qxb7 Rxa3 {½-½ (43) Eising,J-Jaeger,H Bad Mondorf 1974}) 14... bxc6 {[%emt 0:04:01]} 15. g4 {[%emt 0:03:25]} Qh3 {[%emt 0:11:37]} 16. Rf2 {[%emt 0:04:19]} h6 {[%emt 0:02:01]} 17. Bf1 {[%emt 0:05:58]} Qh4 {[%emt 0:00:53]} 18. Rg2 {[%emt 0:01:07]} Nh7 {[%emt 0:01:02]} 19. Bxa7 {[%emt 0:19:48]} Qf6 {[%emt 0:00:14]} 20. Rc1 {[%emt 0:02:38]} Qxf3 {[%emt 0:00:27]} 21. Be2 {[%emt 0:01:06]} Qf6 {[%emt 0:02:03]} 22. Bf2 {[%emt 0:06:59]} Ng5 {[%emt 0:01:20]} 23. Rg3 {[%emt 0:01:11]} Qe5 {[%emt 0:01:46]} 24. Bd3 {[%emt 0:07:44]} Qxg3+ {[%emt 0:00:40]} 25. Bxg3 {[%emt 0:03:08]} Nf3+ {[%emt 0:00:02]} 26. Kg2 {[%emt 0:00:42]} Nxd2 {[%emt 0:00:02]} 27. h3 {[%emt 0:00:59]} Ra8 {[%emt 0:03:50]} 28. Be1 {[%emt 0:02:18]} Nb3 {[%emt 0:00:37]} 29. Rb1 {[%emt 0:00:13]} Rxa3 $19 {[%emt 0:03:24]} 0-1

[Event "Gibraltar Junior Intl U16 2019"]
[Site "Caleta"]
[Date "2019.08.17"]
[Round "3.11"]
[White "Maldonado Mena, German"]
[Black "Seleznev, Egor"]
[Result "1-0"]
[ECO "D36"]
[WhiteElo "1850"]
[BlackElo "1590"]
[Annotator "NA"]
[PlyCount "119"]
[EventDate "2019.08.16"]
[EventType "swiss"]
[EventCountry "GGB"]
[SourceTitle "playchess.com"]
[Source "ChessBase"]
[SourceQuality "1"]
[TimeControl "6600+10"]

1. d4 {[%emt 0:00:00]} d5 {[%emt 0:00:08]} 2. c4 {[%emt 0:00:00]} e6 {[%emt 0:00:29]} 3. Nc3 {[%emt 0:00:07]} Nf6 {[%emt 0:00:35]} 4. cxd5 {[%emt 0:00:12]} exd5 {[%emt 0:00:20]} 5. Bg5 {[%emt 0:00:07]} Nbd7 {[%emt 0:00:37]} 6. Qc2 {[%emt 0:00:38]} c6 {[%emt 0:01:06]} 7. e3 {[%emt 0:00:09]} Be7 {[%emt 0:00:41]} 8. Bd3 {[%emt 0:00:11]} O-O {[%emt 0:01:20]} 9. Nf3 {[%emt 0:00:09]} Re8 {[%emt 0:01:12]} 10. O-O {[%emt 0:00:12]} Nf8 {[%emt 0:01:24]} 11. Ne5 {[%emt 0:00:58]} Ng6 {[%emt 0:02:43] D36: Queen's Gambit Declined: Exchange Variation: Main line (5 Bg5 c6 6 Qc2)} (11... Ng4 12. Bxe7 Qxe7 13. Nxg4 Bxg4 14. Rae1 Qd6 15. f4 Bd7 16. f5 f6 17. Qf2 Re7 18. e4 Rae8 19. exd5 cxd5 20. Rxe7 Rxe7 21. Qf4 Qxf4 22. Rxf4 {½-½ (41) Gozzoli,Y (2561)-Bacrot,E (2694) Saint-Quentin 2015}) 12. f4 {[%emt 0:00:50]} Ng4 {[%emt 0:03:38]} 13. Bxe7 {[%emt 0:02:52]} Qxe7 {[%emt 0:02:36]} 14. Qe2 {[%emt 0:01:25]} N6xe5 {[%emt 0:06:50]} 15. fxe5 {[%emt 0:07:11]} Be6 $146 {[%emt 0:11:38]} ({Predecessor:} 15... Qg5 16. e4 dxe4 17. Nxe4 Qe3+ 18. Qxe3 Nxe3 19. Rf3 {½-½ (32) Liashkevich,L (1009)-Stoll,L (1398) Riga 2018}) 16. Rf4 {[%emt 0:02:55]} f6 {[%emt 0:04:51]} 17. Rxg4 {[%emt 0:02:36]} Bxg4 {[%emt 0:00:51]} 18. Qxg4 {[%emt 0:00:10]} fxe5 {[%emt 0:00:25]} 19. Qh5 {[%emt 0:01:28]} e4 {[%emt 0:05:24]} (19... g6 $5 {[%cal Rg6h5]} 20. Qxe5 Qxe5 21. dxe5 Rxe5 $11) 20. Be2 {[%emt 0:00:53]} Rad8 {[%emt 0:04:31]} 21. h4 {[%emt 0:07:29]} Rd6 {[%emt 0:03:50]} 22. Qg5 {[%emt 0:02:13]} Qxg5 {[%emt 0:05:50]} 23. hxg5 {[%emt 0:00:06]} h6 {[%emt 0:05:47]} 24. g6 {[%emt 0:04:02]} Rb8 {[%emt 0:04:03]} 25. Bh5 {[%emt 0:00:34]} b6 {[%emt 0:01:20]} 26. b4 {[%emt 0:01:27]} b5 {[%emt 0:06:07]} 27. a4 {[%emt 0:00:58]} a5 {[%emt 0:03:13]} 28. bxa5 {[%emt 0:09:11]} b4 {[%emt 0:00:58]} 29. Rb1 {[%emt 0:00:12]} Rdd8 {[%emt 0:01:19]} 30. Na2 {[%emt 0:00:14]} b3 {[%emt 0:00:32]} 31. Nc3 {[%emt 0:00:05]} Rb4 {[%emt 0:01:57]} 32. Rb2 {[%emt 0:02:15]} Ra8 {[%emt 0:03:02]} 33. Bd1 {[%emt 0:00:43]} Rxa5 {[%emt 0:01:02]} 34. Rxb3 {[%emt 0:04:01]} Rxb3 {[%emt 0:01:12]} 35. Bxb3 {[%emt 0:00:02]} Kf8 {[%emt 0:01:07]} 36. Kf2 {[%emt 0:00:11]} Ke7 {[%emt 0:00:18]} 37. Kg3 {[%emt 0:00:15]} Kd6 {[%emt 0:00:46]} 38. Kf4 {[%emt 0:00:28]} Ra8 {[%emt 0:00:28]} 39. Bd1 {[%emt 0:01:39]} Rb8 {[%emt 0:02:20]} 40. Kg3 {[%emt 0:03:25]} (40. Bg4 $16) 40... Rb4 {[%emt 0:02:28]} 41. a5 $18 {[%emt 0:01:43]} c5 {[%emt 0:03:46]} 42. a6 {[%emt 0:02:28]} Rb8 {[%emt 0:00:33]} 43. dxc5+ {[%emt 0:02:54]} Kxc5 {[%emt 0:00:40]} 44. Be2 {[%emt 0:00:33]} Ra8 {[%emt 0:04:14]} 45. Kf4 {[%emt 0:01:05]} Rf8+ {[%emt 0:03:36]} 46. Ke5 {[%emt 0:00:08]} Re8+ {[%emt 0:00:54]} 47. Kf5 {[%emt 0:00:08]} Ra8 {[%emt 0:02:15]} 48. Ke6 {[%emt 0:00:10]} d4 {[%emt 0:00:29]} 49. Nxe4+ {[%emt 0:00:15]} Kb4 {[%emt 0:00:02]} 50. exd4 {[%emt 0:00:18]} Ra7 {[%emt 0:00:16]} 51. d5 {[%emt 0:00:11]} Ka5 {[%emt 0:00:15]} 52. d6 {[%emt 0:00:08]} Kb6 {[%emt 0:00:08]} 53. d7 {[%emt 0:00:58]} Kc7 {[%emt 0:00:32]} 54. Nd6 {[%emt 0:00:07]} Ra8 {[%emt 0:00:41]} 55. Nf7 {[%emt 0:00:24]} Rb8 {[%emt 0:00:38]} 56. d8=Q+ {[%emt 0:00:12]} Rxd8 {[%emt 0:00:01]} 57. Nxd8 {[%emt 0:00:10]} Kxd8 {[%emt 0:00:03]} 58. Kd6 {[%emt 0:00:11]} Kc8 {[%emt 0:00:12]} 59. Kc6 {[%emt 0:00:19]} Kb8 {[%emt 0:00:13]} 60. Kb6 {[%emt 0:00:08]} 1-0

[Event "Gibraltar Junior Intl U16 2019"]
[Site "Caleta"]
[Date "2019.08.17"]
[Round "3.12"]
[White "Lorente Serrano, Rosa Adela"]
[Black "Miller, Max C"]
[Result "1-0"]
[ECO "D02"]
[WhiteElo "1810"]
[BlackElo "1563"]
[Annotator "NA"]
[PlyCount "103"]
[EventDate "2019.08.16"]
[EventType "swiss"]
[EventCountry "GGB"]
[SourceTitle "playchess.com"]
[Source "ChessBase"]
[SourceQuality "1"]
[TimeControl "6600+10"]

1. Nf3 {[%emt 0:00:00]} Nf6 {[%emt 0:00:00]} 2. g3 {[%emt 0:00:11]} d5 {[%emt 0:02:12]} 3. Bg2 {[%emt 0:00:52]} Nbd7 {[%emt 0:01:43]} 4. d4 {[%emt 0:03:37]} e6 {[%emt 0:00:37]} 5. O-O {[%emt 0:02:55]} c5 {[%emt 0:00:30]} 6. c3 {[%emt 0:06:30]} b6 {[%emt 0:07:37]} 7. a4 {[%emt 0:09:00]} a6 {[%emt 0:12:40]} 8. Ne5 {[%emt 0:07:39]} Nxe5 {[%emt 0:02:13]} 9. dxe5 {[%emt 0:00:11]} Nd7 {[%emt 0:00:36]} 10. Bf4 {[%emt 0:00:11]} g5 $11 {[%emt 0:01:22]} 11. Bc1 {[%emt 0:01:26]} Nxe5 {[%emt 0:04:00]} 12. f4 {[%emt 0:01:49]} gxf4 {[%emt 0:08:15]} 13. gxf4 {[%emt 0:03:25]} Ng6 {[%emt 0:08:34]} 14. c4 {[%emt 0:06:51]} Bb7 {[%emt 0:05:55]} 15. Nc3 {[%emt 0:01:22]} Rg8 {[%emt 0:10:21]} 16. cxd5 {[%emt 0:08:41]} exd5 {[%emt 0:01:19]} 17. Kh1 {[%emt 0:02:01]} Ne7 {[%emt 0:02:35]} 18. f5 {[%emt 0:02:47]} Rxg2 {[%emt 0:15:00]} 19. Kxg2 {[%emt 0:03:09]} d4+ {[%emt 0:00:16]} 20. Kg3 {[%emt 0:02:52]} dxc3 {[%emt 0:05:23]} 21. Qxd8+ {[%emt 0:00:13]} Rxd8 {[%emt 0:00:01]} 22. bxc3 {[%emt 0:00:07]} Be4 {[%emt 0:01:52]} 23. f6 {[%emt 0:00:22]} Nd5 {[%emt 0:01:25]} 24. c4 {[%emt 0:03:57]} Bd6+ {[%emt 0:01:38]} 25. Kf2 {[%emt 0:01:32]} Be5 {[%emt 0:01:35]} 26. Ra3 {[%emt 0:01:00]} Bxf6 {[%emt 0:02:50]} 27. cxd5 {[%emt 0:01:15]} Bh4+ {[%emt 0:02:59]} 28. Kg1 {[%emt 0:05:56]} Rd6 {[%emt 0:05:25]} 29. Bf4 {[%emt 0:00:21]} Rg6+ {[%emt 0:02:19]} 30. Bg3 {[%emt 0:00:06]} Bxg3 {[%emt 0:00:18]} 31. Rxg3 {[%emt 0:00:12]} Rxg3+ {[%emt 0:00:20]} 32. hxg3 {[%emt 0:00:07]} Bxd5 {[%emt 0:00:07]} 33. Rb1 {[%emt 0:00:43]} Bc4 {[%emt 0:00:02]} 34. Rxb6 {[%emt 0:00:11]} Bxe2 {[%emt 0:00:02]} 35. Rc6 {[%emt 0:00:09]} Kf8 {[%emt 0:01:47]} 36. Rxc5 {[%emt 0:00:09]} Kg7 {[%emt 0:00:04]} 37. Kf2 {[%emt 0:00:23]} Bd3 {[%emt 0:00:19]} 38. Ke3 {[%emt 0:00:07]} Bf1 {[%emt 0:00:18]} 39. Kf4 {[%emt 0:00:39]} Bd3 {[%emt 0:00:20]} 40. Ke3 {[%emt 0:02:00]} Bf1 {[%emt 0:00:57]} 41. Kd4 {[%emt 0:00:12]} Kg6 {[%emt 0:00:15]} 42. Ke4 {[%emt 0:04:00]} f5+ {[%emt 0:00:28]} 43. Kf4 {[%emt 0:00:15]} Bd3 {[%emt 0:00:11]} 44. Rd5 {[%emt 0:00:05]} Be4 {[%emt 0:00:07]} 45. Rd6+ {[%emt 0:00:05]} Kh5 {[%emt 0:00:24]} 46. Rxa6 {[%emt 0:00:05]} h6 {[%emt 0:00:13]} 47. g4+ {[%emt 0:01:08]} fxg4 {[%emt 0:00:12]} 48. Kxe4 {[%emt 0:00:17]} Kg5 {[%emt 0:00:01]} 49. Rxh6 {[%emt 0:01:38]} Kxh6 {[%emt 0:00:12]} 50. Kf4 {[%emt 0:00:03]} Kh5 {[%emt 0:00:12]} 51. Kg3 {[%emt 0:00:07]} Kg5 {[%emt 0:00:02]} 52. a5 {[%emt 0:00:06]} 1-0

[Event "Gibraltar Junior Intl U16 2019"]
[Site "Caleta"]
[Date "2019.08.17"]
[Round "3.13"]
[White "Kuzhelev, Timur"]
[Black "Bartelt, Max Peter"]
[Result "1-0"]
[ECO "D20"]
[WhiteElo "1597"]
[BlackElo "1803"]
[Annotator "NA"]
[PlyCount "43"]
[EventDate "2019.08.16"]
[EventType "swiss"]
[EventCountry "GGB"]
[SourceTitle "playchess.com"]
[Source "ChessBase"]
[SourceQuality "1"]
[TimeControl "6600+10"]

1. e4 {[%emt 0:00:03]} e6 {[%emt 0:00:00]} 2. d4 {[%emt 0:00:08]} d5 {[%emt 0:00:00]} 3. exd5 {[%emt 0:00:18]} exd5 {[%emt 0:00:04]} 4. Nf3 {[%emt 0:00:12]} Bd6 {[%emt 0:00:05]} 5. c4 {[%emt 0:00:37]} dxc4 {[%emt 0:00:49]} 6. Bxc4 {[%emt 0:00:04]} Nf6 {[%emt 0:01:05]} 7. O-O {[%emt 0:00:29]} O-O {[%emt 0:00:07]} 8. Nc3 {[%emt 0:00:03]} Bg4 {[%emt 0:03:01]} 9. h3 {[%emt 0:01:43]} Bh5 {[%emt 0:00:34]} 10. g4 {[%emt 0:02:49]} Bg6 {[%emt 0:02:02]} 11. Ne5 {[%emt 0:02:51]} Nbd7 {[%emt 0:06:29]} 12. f4 {[%emt 0:05:13]} Ne4 {[%emt 0:32:23]} 13. Nxd7 {[%emt 0:02:07]} Qxd7 {[%emt 0:19:38]} 14. f5 {[%emt 0:01:27]} Nxc3 {[%emt 0:03:28]} 15. bxc3 {[%emt 0:00:07]} Bxf5 {[%emt 0:03:17]} 16. Rxf5 {[%emt 0:01:17]} c5 {[%emt 0:00:13]} 17. Bf4 {[%emt 0:01:03]} b5 {[%emt 0:01:05]} 18. Bxf7+ {[%emt 0:07:26]} Rxf7 {[%emt 0:00:38]} 19. Rxf7 {[%emt 0:00:04]} Kxf7 {[%emt 0:00:52]} 20. Bxd6 {[%emt 0:00:07]} Qxd6 {[%emt 0:01:35]} 21. Qf3+ {[%emt 0:00:05]} Kg6 {[%emt 0:00:04]} 22. Qf5+ {[%emt 0:00:18]} 1-0

[Event "Gibraltar Junior Intl U16 2019"]
[Site "Caleta"]
[Date "2019.08.17"]
[Round "3.14"]
[White "Gogia, Armaan"]
[Black "Lv, Jason"]
[Result "1-0"]
[ECO "C77"]
[WhiteElo "1754"]
[BlackElo "1532"]
[Annotator "NA"]
[PlyCount "55"]
[EventDate "2019.08.16"]
[EventType "swiss"]
[EventCountry "GGB"]
[SourceTitle "playchess.com"]
[Source "ChessBase"]
[SourceQuality "1"]
[TimeControl "6600+10"]

1. e4 {[%emt 0:00:00]} e5 {[%emt 0:00:00]} 2. Nf3 {[%emt 0:00:00]} Nc6 {[%emt 0:00:01]} 3. Bb5 {[%emt 0:00:00]} Nf6 {[%emt 0:00:07]} 4. Qe2 {[%emt 0:00:04]} a6 {[%emt 0:00:26]} 5. Ba4 {[%emt 0:00:03]} Bc5 {[%emt 0:00:43]} 6. c3 {[%emt 0:00:03]} O-O {[%emt 0:00:49]} 7. O-O {[%emt 0:00:03]} Re8 {[%emt 0:00:12]} 8. Rd1 {[%emt 0:00:34]} b5 {[%emt 0:01:04]} 9. Bb3 {[%emt 0:00:02]} Bb7 {[%emt 0:02:31]} 10. d3 {[%emt 0:00:49]} h6 {[%emt 0:00:49]} 11. h3 {[%emt 0:02:06]} d5 {[%emt 0:00:46]} 12. Nbd2 {[%emt 0:03:28]} d4 {[%emt 0:07:42]} 13. Nf1 {[%emt 0:08:59]} Qe7 {[%emt 0:06:39]} 14. g4 {[%emt 0:03:06]} Nh7 {[%emt 0:07:09]} 15. Ng3 {[%emt 0:01:49]} Rad8 {[%emt 0:06:54]} 16. Nf5 {[%emt 0:02:51]} Qf8 {[%emt 0:00:31]} 17. N3h4 {[%emt 0:05:17]} Na5 {[%emt 0:06:31]} 18. Ng6 {[%emt 0:00:39]} Nxb3 {[%emt 0:01:22]} 19. Nxf8 {[%emt 0:00:12]} Nxc1 {[%emt 0:00:09]} 20. Raxc1 {[%emt 0:00:14]} Nxf8 {[%emt 0:00:29]} 21. cxd4 {[%emt 0:00:22]} Bxd4 {[%emt 0:02:58]} 22. Rxc7 {[%emt 0:00:37]} Ba8 {[%emt 0:00:36]} 23. Qf3 {[%emt 0:02:01]} Rd7 {[%emt 0:01:47]} 24. Rxd7 {[%emt 0:01:36]} Nxd7 {[%emt 0:00:10]} 25. Nxd4 {[%emt 0:00:26]} exd4 {[%emt 0:00:10]} 26. Qf5 {[%emt 0:00:45]} Nf8 {[%emt 0:01:11]} 27. Rc1 {[%emt 0:00:11]} Ne6 {[%emt 0:00:18]} 28. a4 {[%emt 0:02:51]} 1-0

[Event "Gibraltar Junior Intl U16 2019"]
[Site "Caleta"]
[Date "2019.08.17"]
[Round "3.15"]
[White "Dharmasena, Gavith"]
[Black "Onslow, Teddy"]
[Result "1/2-1/2"]
[ECO "C01"]
[WhiteElo "1585"]
[BlackElo "1739"]
[Annotator "NA"]
[PlyCount "56"]
[EventDate "2019.08.16"]
[EventType "swiss"]
[EventCountry "GGB"]
[SourceTitle "playchess.com"]
[Source "ChessBase"]
[SourceQuality "1"]
[TimeControl "6600+10"]

1. e4 {[%emt 0:00:00]} e6 {[%emt 0:00:00]} 2. d4 {[%emt 0:00:30]} d5 {[%emt 0:00:00]} 3. exd5 {[%emt 0:00:05]} exd5 {[%emt 0:00:01]} 4. c4 {[%emt 0:00:03]} c6 {[%emt 0:00:11]} 5. Bd3 {[%emt 0:00:15]} Nf6 {[%emt 0:01:40]} 6. Ne2 {[%emt 0:00:24]} dxc4 {[%emt 0:05:02]} 7. Bxc4 {[%emt 0:00:23]} Bd6 {[%emt 0:01:01]} 8. Nbc3 {[%emt 0:01:13]} O-O {[%emt 0:01:26]} 9. h3 {[%emt 0:00:34]} b5 {[%emt 0:01:23]} 10. Bd3 {[%emt 0:02:05]} Bb7 {[%emt 0:00:33]} 11. Bg5 {[%emt 0:01:43]} h6 {[%emt 0:03:18]} 12. Bh4 {[%emt 0:00:50]} Nbd7 {[%emt 0:01:11]} 13. O-O {[%emt 0:00:14]} Qb6 {[%emt 0:02:22]} 14. Ng3 {[%emt 0:02:44]} Bxg3 {[%emt 0:01:57]} 15. Bxg3 {[%emt 0:00:21]} a5 {[%emt 0:05:00]} 16. Ne4 {[%emt 0:03:38]} Nxe4 {[%emt 0:09:57]} 17. Bxe4 {[%emt 0:00:28]} Nf6 {[%emt 0:00:40]} 18. Bd3 {[%emt 0:05:03]} Rfd8 {[%emt 0:09:42]} 19. Be5 {[%emt 0:01:13]} c5 {[%emt 0:03:10]} 20. Rc1 {[%emt 0:01:13]} Rac8 {[%emt 0:09:56]} 21. dxc5 {[%emt 0:00:32]} Rxc5 {[%emt 0:19:56]} 22. Rxc5 {[%emt 0:04:06]} Qxc5 {[%emt 0:00:02]} 23. Bxf6 {[%emt 0:00:28]} Qc6 {[%emt 0:03:59]} 24. Qg4 {[%emt 0:01:39]} Qxf6 {[%emt 0:00:10]} 25. Bxb5 {[%emt 0:01:23]} Rd5 {[%emt 0:04:25]} 26. Qe4 {[%emt 0:04:56]} Qb6 {[%emt 0:12:31]} 27. Bd3 {[%emt 0:00:35]} g6 {[%emt 0:03:46]} 28. Bc4 {[%emt 0:01:15]} Rf5 {[%emt 0:00:02]} 1/2-1/2